[Event "Titled Tuesday Blitz June 13 Late 2023"]
[White "Besedes, Danilo"]
[Black "Bogaudinov, Rushan"]
[WhiteFideId "946796"]
[BlackFideId "4129288"]
[WhiteElo "2352"]
[BlackElo "1967"]
[Result "1-0"]
[Round "2"]
[TimeControl "180+2"]
[Date "2023.06.13"]
[WhiteClock "0:01:19"]
[BlackClock "0:00:11"]
[Board "136"]

1. e4 {[%clk 0:02:58]}  c5 {[%clk 0:02:59]} 2. Nf3 {[%clk 0:02:58]}  Nc6 {[%clk 0:02:59]} 3. c3 {[%clk 0:02:56]}  e6 {[%clk 0:02:58]} 4. d4 {[%clk 0:02:56]}  d5 {[%clk 0:02:57]} 5. e5 {[%clk 0:02:56]}  Nge7 {[%clk 0:02:56]} 6. Be2 {[%clk 0:02:56]}  Nf5 {[%clk 0:02:56]} 7. O-O {[%clk 0:02:54]}  Qb6 {[%clk 0:02:55]} 8. dxc5 {[%clk 0:02:52]}  Bxc5 {[%clk 0:02:55]} 9. Nbd2 {[%clk 0:02:49]}  O-O {[%clk 0:02:40]} 10. Nb3 {[%clk 0:02:45]}  Be7 {[%clk 0:02:39]} 11. Bd3 {[%clk 0:02:32]}  Rd8 {[%clk 0:02:01]} 12. Re1 {[%clk 0:02:29]}  a5 {[%clk 0:01:57]} 13. a4 {[%clk 0:02:29]}  Bf8 {[%clk 0:01:20]} 14. g4 {[%clk 0:02:23]}  Nfe7 {[%clk 0:01:10]} 15. Be3 {[%clk 0:02:22]}  Qc7 {[%clk 0:01:09]} 16. Bf4 {[%clk 0:02:19]}  Ng6 {[%clk 0:01:04]} 17. Bg3 {[%clk 0:02:20]}  b6 {[%clk 0:00:41]} 18. Qe2 {[%clk 0:02:13]}  Nb8 {[%clk 0:00:31]} 19. h4 {[%clk 0:02:11]}  Ba6 {[%clk 0:00:31]} 20. h5 {[%clk 0:02:11]}  Ne7 {[%clk 0:00:31]} 21. Nbd4 {[%clk 0:02:03]}  Bxd3 {[%clk 0:00:30]} 22. Qxd3 {[%clk 0:02:04]}  Nec6 {[%clk 0:00:20]} 23. Nb5 {[%clk 0:01:57]}  Qd7 {[%clk 0:00:19]} 24. Ng5 {[%clk 0:01:51]}  g6 {[%clk 0:00:17]} 25. hxg6 {[%clk 0:01:51]}  fxg6 {[%clk 0:00:17]} 26. Kg2 {[%clk 0:01:50]}  Na6 {[%clk 0:00:17]} 27. Rh1 {[%clk 0:01:49]}  Nc5 {[%clk 0:00:16]} 28. Qc2 {[%clk 0:01:48]}  h6 {[%clk 0:00:13]} 29. Qxg6+ {[%clk 0:01:41]}  Qg7 {[%clk 0:00:14]} 30. Qxg7+ {[%clk 0:01:35]}  Bxg7 {[%clk 0:00:15]} 31. Nf3 {[%clk 0:01:33]}  Rf8 {[%clk 0:00:11]} 32. Rhe1 {[%clk 0:01:25]}  Ne4 {[%clk 0:00:09]} 33. Nc7 {[%clk 0:01:23]}  Ra7 {[%clk 0:00:06]} 34. Nxe6 {[%clk 0:01:23]}  Re8 {[%clk 0:00:05]} 35. Nxg7 {[%clk 0:01:23]}  Kxg7 {[%clk 0:00:06]} 36. Rad1 {[%clk 0:01:20]}  Rd7 {[%clk 0:00:05]} 37. Rxe4 {[%clk 0:01:20]}  dxe4 {[%clk 0:00:04]} 38. Rxd7+ {[%clk 0:01:20]}  Kg8 {[%clk 0:00:03]} 39. Nd4 {[%clk 0:01:19]}  Nxe5 {[%clk 0:00:03]} 40. Bxe5 {[%clk 0:01:19]}  Rxe5 {[%clk 0:00:04]} 41. Nc2 {[%clk 0:01:18]}  Rg5 {[%clk 0:00:03]} 42. Ne3 {[%clk 0:01:19]}  h5 {[%clk 0:00:02]} 43. Rd4 {[%clk 0:01:18]}  hxg4 {[%clk 0:00:02]} 44. Rxe4 {[%clk 0:01:18]}  Kf7 {[%clk 0:00:03]} 45. Rxg4 {[%clk 0:01:19]}  Re5 {[%clk 0:00:04]} 46. Rf4+ {[%clk 0:01:18]}  Ke7 {[%clk 0:00:03]} 47. Rf5 {[%clk 0:01:18]}  Re4 {[%clk 0:00:03]} 48. Rb5 {[%clk 0:01:18]}  Rxa4 {[%clk 0:00:03]} 49. Rxb6 {[%clk 0:01:19]}  Kd7 {[%clk 0:00:03]} 50. b4 {[%clk 0:01:18]}  axb4 {[%clk 0:00:02]} 51. cxb4 {[%clk 0:01:18]}  Ra3 {[%clk 0:00:03]} 52. Kf3 {[%clk 0:01:18]}  Kc7 {[%clk 0:00:03]} 53. Rb5 {[%clk 0:01:18]}  Kc6 {[%clk 0:00:03]} 54. Rc5+ {[%clk 0:01:18]}  Kb6 {[%clk 0:00:04]} 55. Rf5 {[%clk 0:01:19]}  Kb7 {[%clk 0:00:04]} 56. b5 {[%clk 0:01:20]}  Ra4 {[%clk 0:00:04]} 57. Rd5 {[%clk 0:01:20]}  Kb6 {[%clk 0:00:05]} 58. Kg3 {[%clk 0:01:20]}  Kb7 {[%clk 0:00:06]} 59. f4 {[%clk 0:01:21]}  Kb6 {[%clk 0:00:06]} 60. Kf3 {[%clk 0:01:22]}  Ra3 {[%clk 0:00:07]} 61. f5 {[%clk 0:01:22]}  Ra4 {[%clk 0:00:07]} 62. f6 {[%clk 0:01:23]}  Kc7 {[%clk 0:00:08]} 63. f7 {[%clk 0:01:23]}  Ra8 {[%clk 0:00:09]} 64. Rf5 {[%clk 0:01:23]}  Rf8 {[%clk 0:00:10]} 65. Rf6 {[%clk 0:01:22]}  Kd7 {[%clk 0:00:10]} 66. b6 {[%clk 0:01:23]}  Ke7 {[%clk 0:00:11]} 67. Nd5+ {[%clk 0:01:24]}  Kd7 {[%clk 0:00:11]} 68. Kf4 {[%clk 0:01:24]}  Rb8 {[%clk 0:00:12]} 69. f8=Q {[%clk 0:01:24]}  Rxf8 {[%clk 0:00:13]} 70. Rxf8 {[%clk 0:01:24]}  Kc6 {[%clk 0:00:13]} 71. Rf7 {[%clk 0:01:24]}  Kd6 {[%clk 0:00:13]} 72. b7 {[%clk 0:01:23]}  Ke6 {[%clk 0:00:14]} 73. b8=Q {[%clk 0:01:23]}  Kxf7 {[%clk 0:00:13]} 74. Qd6 {[%clk 0:01:19]}  Ke8 {[%clk 0:00:11]} 75. Qe7# {[%clk 0:01:19]} 1-0


[Site "https://www.chess.com"]

[Event "Titled Tuesday Blitz June 13 Late 2023"]
[White "Garrido, Denis"]
[Black "FoxOnTheRun97"]
[WhiteFideId "601217"]
[WhiteElo "2358"]
[BlackElo "2518"]
[Result "0-1"]
[Round "2"]
[TimeControl "180+2"]
[Date "2023.06.13"]
[WhiteClock "0:02:04"]
[BlackClock "0:01:26"]
[Board "140"]

1. e4 {[%clk 0:03:00]}  c6 {[%clk 0:02:59]} 2. d4 {[%clk 0:03:00]}  d5 {[%clk 0:02:59]} 3. e5 {[%clk 0:03:00]}  c5 {[%clk 0:02:59]} 4. dxc5 {[%clk 0:03:01]}  e6 {[%clk 0:02:59]} 5. a3 {[%clk 0:03:01]}  Bxc5 {[%clk 0:02:57]} 6. Nf3 {[%clk 0:03:01]}  Ne7 {[%clk 0:02:49]} 7. b4 {[%clk 0:02:59]}  Bb6 {[%clk 0:02:49]} 8. Bb2 {[%clk 0:03:00]}  a5 {[%clk 0:02:43]} 9. Nbd2 {[%clk 0:02:51]}  axb4 {[%clk 0:02:40]} 10. axb4 {[%clk 0:02:52]}  Rxa1 {[%clk 0:02:39]} 11. Qxa1 {[%clk 0:02:53]}  Nbc6 {[%clk 0:02:39]} 12. b5 {[%clk 0:02:47]}  Na5 {[%clk 0:02:22]} 13. Bd3 {[%clk 0:02:43]}  Qc7 {[%clk 0:02:17]} 14. O-O {[%clk 0:02:41]}  Nc4 {[%clk 0:02:15]} 15. Bxc4 {[%clk 0:02:40]}  dxc4 {[%clk 0:02:16]} 16. Ne4 {[%clk 0:02:40]}  O-O {[%clk 0:02:14]} 17. Bd4 {[%clk 0:02:33]}  Nf5 {[%clk 0:02:04]} 18. Bxb6 {[%clk 0:02:31]}  Qxb6 {[%clk 0:02:04]} 19. Qa4 {[%clk 0:02:28]}  Bd7 {[%clk 0:02:01]} 20. Rb1 {[%clk 0:02:26]}  Rc8 {[%clk 0:02:00]} 21. g4 {[%clk 0:02:21]}  Nd4 {[%clk 0:01:55]} 22. Kg2 {[%clk 0:02:09]}  Bxb5 {[%clk 0:01:29]} 23. Qb4 {[%clk 0:02:09]}  Qc6 {[%clk 0:01:27]} 24. Nxd4 {[%clk 0:02:05]}  Qxe4+ {[%clk 0:01:27]} 25. Nf3 {[%clk 0:02:04]}  Qxg4+ {[%clk 0:01:26]} 0-1


[Site "https://www.chess.com"]

[Event "Titled Tuesday Blitz June 13 Late 2023"]
[White "Golubev, Mikhail"]
[Black "Francisco_Ferrari"]
[WhiteFideId "14100983"]
[WhiteElo "2374"]
[BlackElo "2349"]
[Result "1-0"]
[Round "2"]
[TimeControl "180+2"]
[Date "2023.06.13"]
[WhiteClock "0:00:23"]
[BlackClock "0:00:00"]
[Board "142"]

1. e4 {[%clk 0:02:59]}  e5 {[%clk 0:02:57]} 2. Nf3 {[%clk 0:02:58]}  Nc6 {[%clk 0:02:57]} 3. Bc4 {[%clk 0:02:58]}  Nf6 {[%clk 0:02:56]} 4. Ng5 {[%clk 0:02:57]}  d5 {[%clk 0:02:53]} 5. exd5 {[%clk 0:02:58]}  Na5 {[%clk 0:02:51]} 6. Bb5+ {[%clk 0:02:57]}  c6 {[%clk 0:02:47]} 7. dxc6 {[%clk 0:02:57]}  bxc6 {[%clk 0:02:47]} 8. Bd3 {[%clk 0:02:56]}  h6 {[%clk 0:02:26]} 9. Ne4 {[%clk 0:02:49]}  Be7 {[%clk 0:02:26]} 10. Nxf6+ {[%clk 0:02:42]}  Bxf6 {[%clk 0:02:18]} 11. Nc3 {[%clk 0:02:33]}  O-O {[%clk 0:02:04]} 12. O-O {[%clk 0:02:32]}  Be6 {[%clk 0:01:57]} 13. b3 {[%clk 0:02:19]}  Nb7 {[%clk 0:01:47]} 14. Ba3 {[%clk 0:02:12]}  Re8 {[%clk 0:01:43]} 15. Qf3 {[%clk 0:02:01]}  Bd5 {[%clk 0:01:29]} 16. Be4 {[%clk 0:01:43]}  Nd6 {[%clk 0:00:57]} 17. Bxd5 {[%clk 0:01:36]}  e4 {[%clk 0:00:39]} 18. Nxe4 {[%clk 0:01:12]}  Nxe4 {[%clk 0:00:30]} 19. Bxe4 {[%clk 0:01:00]}  Bxa1 {[%clk 0:00:29]} 20. Bxc6 {[%clk 0:00:57]}  Qxd2 {[%clk 0:00:21]} 21. Bxa8 {[%clk 0:00:36]}  Re1 {[%clk 0:00:10]} 22. g3 {[%clk 0:00:35]}  Rxf1+ {[%clk 0:00:09]} 23. Kxf1 {[%clk 0:00:35]}  Qxc2 {[%clk 0:00:09]} 24. Bd5 {[%clk 0:00:31]}  Bf6 {[%clk 0:00:06]} 25. Kg2 {[%clk 0:00:28]}  Qxa2 {[%clk 0:00:06]} 26. Be7 {[%clk 0:00:26]}  Qb2 {[%clk 0:00:04]} 27. Bxf6 {[%clk 0:00:25]}  gxf6 {[%clk 0:00:05]} 28. Qg4+ {[%clk 0:00:24]}  Kf8 {[%clk 0:00:00]} 29. Qd7 {[%clk 0:00:23]} 1-0


[Site "https://www.chess.com"]

[Event "Titled Tuesday Blitz June 13 Late 2023"]
[White "Srdanovic, Jovana"]
[Black "GAO"]
[WhiteFideId "954810"]
[WhiteElo "2155"]
[BlackElo "2345"]
[Result "0-1"]
[Round "2"]
[TimeControl "180+2"]
[Date "2023.06.13"]
[WhiteClock "0:00:18"]
[BlackClock "0:01:37"]
[Board "144"]

1. d4 {[%clk 0:03:00]}  Nf6 {[%clk 0:02:51]} 2. c4 {[%clk 0:02:56]}  c5 {[%clk 0:02:51]} 3. d5 {[%clk 0:02:56]}  b5 {[%clk 0:02:51]} 4. cxb5 {[%clk 0:02:56]}  a6 {[%clk 0:02:52]} 5. bxa6 {[%clk 0:02:55]}  g6 {[%clk 0:02:52]} 6. Nc3 {[%clk 0:02:55]}  Bxa6 {[%clk 0:02:53]} 7. e4 {[%clk 0:02:54]}  Bxf1 {[%clk 0:02:53]} 8. Kxf1 {[%clk 0:02:55]}  d6 {[%clk 0:02:53]} 9. g3 {[%clk 0:02:55]}  Bg7 {[%clk 0:02:54]} 10. Kg2 {[%clk 0:02:56]}  Nbd7 {[%clk 0:02:54]} 11. Nf3 {[%clk 0:02:56]}  O-O {[%clk 0:02:55]} 12. Re1 {[%clk 0:02:56]}  Ra6 {[%clk 0:02:54]} 13. h3 {[%clk 0:02:56]}  Qa8 {[%clk 0:02:54]} 14. Nd2 {[%clk 0:02:47]}  e6 {[%clk 0:02:50]} 15. Nc4 {[%clk 0:02:40]}  exd5 {[%clk 0:02:50]} 16. exd5 {[%clk 0:02:40]}  Rb8 {[%clk 0:02:44]} 17. Bf4 {[%clk 0:02:34]}  Nb6 {[%clk 0:02:27]} 18. Nxd6 {[%clk 0:02:05]}  Nbxd5 {[%clk 0:02:26]} 19. Nxd5 {[%clk 0:02:05]}  Nxd5 {[%clk 0:02:26]} 20. Kh2 {[%clk 0:00:45]}  Nxf4 {[%clk 0:02:18]} 21. gxf4 {[%clk 0:00:46]}  Rd8 {[%clk 0:02:01]} 22. Re8+ {[%clk 0:00:38]}  Rxe8 {[%clk 0:02:00]} 23. Nxe8 {[%clk 0:00:39]}  Qxe8 {[%clk 0:02:01]} 24. Qd3 {[%clk 0:00:39]}  Bxb2 {[%clk 0:01:57]} 25. Rb1 {[%clk 0:00:36]}  Rb6 {[%clk 0:01:42]} 26. Qc2 {[%clk 0:00:18]}  Qb5 {[%clk 0:01:37]} 0-1


[Site "https://www.chess.com"]

[Event "Titled Tuesday Blitz June 13 Late 2023"]
[White "Gerbelli Neto, Eduardo"]
[Black "Berezin, Viktor"]
[WhiteFideId "2103281"]
[BlackFideId "14107872"]
[WhiteElo "2178"]
[BlackElo "2310"]
[Result "0-1"]
[Round "2"]
[TimeControl "180+2"]
[Date "2023.06.13"]
[WhiteClock "0:00:04"]
[BlackClock "0:00:47"]
[Board "145"]

1. e4 {[%clk 0:03:00]}  g6 {[%clk 0:02:56]} 2. Nc3 {[%clk 0:03:00]}  Bg7 {[%clk 0:02:56]} 3. f4 {[%clk 0:03:00]}  d6 {[%clk 0:02:56]} 4. Nf3 {[%clk 0:03:00]}  Nf6 {[%clk 0:02:56]} 5. Bc4 {[%clk 0:03:01]}  O-O {[%clk 0:02:53]} 6. d3 {[%clk 0:03:01]}  c6 {[%clk 0:02:53]} 7. Bb3 {[%clk 0:03:01]}  b5 {[%clk 0:02:53]} 8. O-O {[%clk 0:02:59]}  a5 {[%clk 0:02:53]} 9. a4 {[%clk 0:02:59]}  bxa4 {[%clk 0:02:48]} 10. Bxa4 {[%clk 0:02:54]}  Na6 {[%clk 0:02:48]} 11. d4 {[%clk 0:02:50]}  Qb6 {[%clk 0:02:33]} 12. Kh1 {[%clk 0:02:47]}  Bg4 {[%clk 0:02:32]} 13. e5 {[%clk 0:02:42]}  Nd5 {[%clk 0:02:29]} 14. Nxd5 {[%clk 0:02:34]}  cxd5 {[%clk 0:02:30]} 15. c3 {[%clk 0:02:35]}  e6 {[%clk 0:02:26]} 16. h3 {[%clk 0:02:24]}  Bxf3 {[%clk 0:02:23]} 17. Qxf3 {[%clk 0:02:25]}  f6 {[%clk 0:02:10]} 18. exd6 {[%clk 0:01:57]}  Qxd6 {[%clk 0:02:07]} 19. b3 {[%clk 0:01:45]}  Rfc8 {[%clk 0:02:04]} 20. Ba3 {[%clk 0:01:42]}  Qc7 {[%clk 0:02:02]} 21. Rac1 {[%clk 0:01:42]}  Bf8 {[%clk 0:02:01]} 22. Bxf8 {[%clk 0:01:35]}  Kxf8 {[%clk 0:02:02]} 23. Qe3 {[%clk 0:01:35]}  Kf7 {[%clk 0:02:01]} 24. Rfe1 {[%clk 0:01:35]}  Qd6 {[%clk 0:01:59]} 25. c4 {[%clk 0:01:25]}  dxc4 {[%clk 0:01:48]} 26. bxc4 {[%clk 0:01:26]}  Nb4 {[%clk 0:01:48]} 27. c5 {[%clk 0:01:18]}  Qe7 {[%clk 0:01:39]} 28. Bb3 {[%clk 0:01:18]}  Ra6 {[%clk 0:01:38]} 29. d5 {[%clk 0:01:15]}  Kg7 {[%clk 0:01:30]} 30. d6 {[%clk 0:01:13]}  Qd8 {[%clk 0:01:28]} 31. Qxe6 {[%clk 0:01:06]}  Ra7 {[%clk 0:01:28]} 32. f5 {[%clk 0:00:42]}  Nd3 {[%clk 0:01:28]} 33. fxg6 {[%clk 0:00:30]}  hxg6 {[%clk 0:01:28]} 34. c6 {[%clk 0:00:17]}  Nxe1 {[%clk 0:01:26]} 35. d7 {[%clk 0:00:16]}  Rxd7 {[%clk 0:01:10]} 36. Rxe1 {[%clk 0:00:15]}  Rdc7 {[%clk 0:01:05]} 37. Rd1 {[%clk 0:00:14]}  Qe7 {[%clk 0:00:53]} 38. Rd7 {[%clk 0:00:11]}  Rxd7 {[%clk 0:00:53]} 39. cxd7 {[%clk 0:00:09]}  Qxe6 {[%clk 0:00:50]} 40. Bxe6 {[%clk 0:00:09]}  Rd8 {[%clk 0:00:47]} 41. g4 {[%clk 0:00:10]}  Kf8 {[%clk 0:00:46]} 42. h4 {[%clk 0:00:10]}  Ke7 {[%clk 0:00:47]} 43. Bb3 {[%clk 0:00:08]}  Rxd7 {[%clk 0:00:46]} 44. h5 {[%clk 0:00:08]}  gxh5 {[%clk 0:00:46]} 45. gxh5 {[%clk 0:00:09]}  Rd4 {[%clk 0:00:47]} 46. Kg2 {[%clk 0:00:09]}  Rh4 {[%clk 0:00:47]} 47. Bd1 {[%clk 0:00:07]}  a4 {[%clk 0:00:47]} 48. Kg3 {[%clk 0:00:07]}  Rh1 {[%clk 0:00:47]} 49. Bxa4 {[%clk 0:00:07]}  Rxh5 {[%clk 0:00:47]} 50. Bc2 {[%clk 0:00:07]}  Rg5+ {[%clk 0:00:47]} 51. Kf4 {[%clk 0:00:07]}  Ke6 {[%clk 0:00:48]} 52. Bb3+ {[%clk 0:00:06]}  Ke7 {[%clk 0:00:48]} 53. Bc2 {[%clk 0:00:07]}  Rc5 {[%clk 0:00:48]} 54. Be4 {[%clk 0:00:06]}  Kd6 {[%clk 0:00:48]} 55. Bf5 {[%clk 0:00:06]}  Rc4+ {[%clk 0:00:47]} 56. Be4 {[%clk 0:00:06]}  Ke6 {[%clk 0:00:48]} 57. Ke3 {[%clk 0:00:05]}  Ke5 {[%clk 0:00:48]} 58. Bd3 {[%clk 0:00:05]}  Rh4 {[%clk 0:00:49]} 59. Be2 {[%clk 0:00:05]}  Rh3+ {[%clk 0:00:49]} 60. Kf2 {[%clk 0:00:05]}  Kf4 {[%clk 0:00:48]} 61. Kg2 {[%clk 0:00:05]}  Ra3 {[%clk 0:00:48]} 62. Bc4 {[%clk 0:00:04]}  f5 {[%clk 0:00:48]} 63. Kf2 {[%clk 0:00:04]}  Rc3 {[%clk 0:00:48]} 64. Be2 {[%clk 0:00:05]}  Rc2 {[%clk 0:00:48]} 65. Ke1 {[%clk 0:00:05]}  Ke3 {[%clk 0:00:48]} 66. Bd1 {[%clk 0:00:06]}  Rh2 {[%clk 0:00:47]} 67. Kf1 {[%clk 0:00:04]}  Rh1+ {[%clk 0:00:47]} 0-1


[Site "https://www.chess.com"]

[Event "Titled Tuesday Blitz June 13 Late 2023"]
[White "The_Straightforward_Rook"]
[Black "Taboas Rodriguez, Daniel"]
[BlackFideId "2208466"]
[WhiteElo "2344"]
[BlackElo "2365"]
[Result "0-1"]
[Round "2"]
[TimeControl "180+2"]
[Date "2023.06.13"]
[WhiteClock "0:00:18"]
[BlackClock "0:00:11"]
[Board "146"]

1. e4 {[%clk 0:03:00]}  e5 {[%clk 0:02:59]} 2. Nf3 {[%clk 0:03:00]}  Nc6 {[%clk 0:03:00]} 3. Bc4 {[%clk 0:03:01]}  Nf6 {[%clk 0:03:00]} 4. d3 {[%clk 0:03:01]}  Bc5 {[%clk 0:03:00]} 5. a4 {[%clk 0:03:01]}  d6 {[%clk 0:02:59]} 6. a5 {[%clk 0:02:59]}  a6 {[%clk 0:02:57]} 7. c3 {[%clk 0:02:59]}  Be6 {[%clk 0:02:52]} 8. Nbd2 {[%clk 0:02:59]}  O-O {[%clk 0:02:50]} 9. Bxe6 {[%clk 0:02:55]}  fxe6 {[%clk 0:02:51]} 10. Qb3 {[%clk 0:02:55]}  Qd7 {[%clk 0:02:49]} 11. O-O {[%clk 0:02:44]}  Nh5 {[%clk 0:02:41]} 12. Nc4 {[%clk 0:02:40]}  Rxf3 {[%clk 0:02:29]} 13. gxf3 {[%clk 0:02:39]}  Rf8 {[%clk 0:02:30]} 14. Kg2 {[%clk 0:02:21]}  Rf6 {[%clk 0:02:16]} 15. Rg1 {[%clk 0:02:19]}  Qf7 {[%clk 0:02:07]} 16. Qd1 {[%clk 0:02:19]}  Ne7 {[%clk 0:01:55]} 17. Be3 {[%clk 0:02:18]}  Ng6 {[%clk 0:01:51]} 18. Bxc5 {[%clk 0:02:16]}  Nhf4+ {[%clk 0:01:41]} 19. Kf1 {[%clk 0:02:15]}  dxc5 {[%clk 0:01:42]} 20. Rg3 {[%clk 0:02:09]}  Qd7 {[%clk 0:01:36]} 21. Qd2 {[%clk 0:02:01]}  Qb5 {[%clk 0:01:21]} 22. b4 {[%clk 0:01:55]}  h6 {[%clk 0:01:15]} 23. Rb1 {[%clk 0:01:48]}  Kh7 {[%clk 0:01:12]} 24. Rb2 {[%clk 0:01:34]}  Nxd3 {[%clk 0:00:59]} 25. Qxd3 {[%clk 0:01:32]}  Nf4 {[%clk 0:00:59]} 26. bxc5 {[%clk 0:01:26]}  Nxd3 {[%clk 0:00:56]} 27. Rxb5 {[%clk 0:01:25]}  axb5 {[%clk 0:00:57]} 28. c6 {[%clk 0:01:25]}  bxc6 {[%clk 0:00:49]} 29. Ne3 {[%clk 0:01:13]}  Rf8 {[%clk 0:00:46]} 30. Ke2 {[%clk 0:01:06]}  Nf4+ {[%clk 0:00:45]} 31. Kd2 {[%clk 0:01:06]}  Ra8 {[%clk 0:00:42]} 32. Ng4 {[%clk 0:01:07]}  Rxa5 {[%clk 0:00:37]} 33. Nxe5 {[%clk 0:01:07]}  c5 {[%clk 0:00:35]} 34. Ke3 {[%clk 0:01:03]}  g5 {[%clk 0:00:35]} 35. h4 {[%clk 0:01:03]}  Nh5 {[%clk 0:00:18]} 36. Rg1 {[%clk 0:01:00]}  Ra3 {[%clk 0:00:17]} 37. hxg5 {[%clk 0:00:57]}  Rxc3+ {[%clk 0:00:14]} 38. Kd2 {[%clk 0:00:58]}  b4 {[%clk 0:00:15]} 39. gxh6 {[%clk 0:00:58]}  Kxh6 {[%clk 0:00:15]} 40. Rg6+ {[%clk 0:00:58]}  Kh7 {[%clk 0:00:14]} 41. Rxe6 {[%clk 0:00:59]}  Nf4 {[%clk 0:00:15]} 42. Re7+ {[%clk 0:00:57]}  Kg8 {[%clk 0:00:14]} 43. Rxc7 {[%clk 0:00:57]}  Ne6 {[%clk 0:00:11]} 44. Rc6 {[%clk 0:00:54]}  Nd4 {[%clk 0:00:11]} 45. Rc8+ {[%clk 0:00:53]}  Kg7 {[%clk 0:00:11]} 46. f4 {[%clk 0:00:53]}  Rc2+ {[%clk 0:00:08]} 47. Ke1 {[%clk 0:00:52]}  b3 {[%clk 0:00:09]} 48. Nd3 {[%clk 0:00:42]}  c4 {[%clk 0:00:09]} 49. Rc7+ {[%clk 0:00:38]}  Kf8 {[%clk 0:00:09]} 50. Rc8+ {[%clk 0:00:38]}  Ke7 {[%clk 0:00:09]} 51. Nb4 {[%clk 0:00:29]}  b2 {[%clk 0:00:08]} 52. Nd5+ {[%clk 0:00:30]}  Kd7 {[%clk 0:00:07]} 53. Nb6+ {[%clk 0:00:26]}  Ke7 {[%clk 0:00:07]} 54. Nd5+ {[%clk 0:00:26]}  Kd6 {[%clk 0:00:07]} 55. Rd8+ {[%clk 0:00:24]}  Kc5 {[%clk 0:00:06]} 56. Rc8+ {[%clk 0:00:24]}  Nc6 {[%clk 0:00:06]} 57. Rxc6+ {[%clk 0:00:16]}  Kxc6 {[%clk 0:00:07]} 58. Nb4+ {[%clk 0:00:16]}  Kc5 {[%clk 0:00:07]} 59. Nxc2 {[%clk 0:00:17]}  b1=Q+ {[%clk 0:00:08]} 60. Kd2 {[%clk 0:00:18]}  Qb2 {[%clk 0:00:06]} 61. Kd1 {[%clk 0:00:18]}  Qc3 {[%clk 0:00:06]} 62. Ne3 {[%clk 0:00:18]}  Qd3+ {[%clk 0:00:06]} 63. Ke1 {[%clk 0:00:18]}  c3 {[%clk 0:00:07]} 64. e5 {[%clk 0:00:18]}  Qd2+ {[%clk 0:00:07]} 65. Kf1 {[%clk 0:00:17]}  c2 {[%clk 0:00:07]} 66. Nxc2 {[%clk 0:00:17]}  Qxc2 {[%clk 0:00:08]} 67. Kg2 {[%clk 0:00:18]}  Qf5 {[%clk 0:00:09]} 68. Kg3 {[%clk 0:00:19]}  Kd5 {[%clk 0:00:09]} 69. Kf3 {[%clk 0:00:20]}  Kd4 {[%clk 0:00:10]} 70. Kg3 {[%clk 0:00:20]}  Ke4 {[%clk 0:00:10]} 71. f3+ {[%clk 0:00:20]}  Ke3 {[%clk 0:00:10]} 72. e6 {[%clk 0:00:18]}  Qg6+ {[%clk 0:00:11]} 0-1


[Site "https://www.chess.com"]

[Event "Titled Tuesday Blitz June 13 Late 2023"]
[White "Shapiro, Viktor"]
[Black "Seresin, Francesco"]
[WhiteFideId "4175700"]
[BlackFideId "886335"]
[WhiteElo "2212"]
[BlackElo "2219"]
[Result "1/2-1/2"]
[Round "2"]
[TimeControl "180+2"]
[Date "2023.06.13"]
[WhiteClock "0:01:05"]
[BlackClock "0:00:51"]
[Board "147"]

1. Nf3 {[%clk 0:03:00]}  Nf6 {[%clk 0:02:59]} 2. g3 {[%clk 0:03:01]}  e6 {[%clk 0:02:59]} 3. Bg2 {[%clk 0:03:02]}  d5 {[%clk 0:02:59]} 4. O-O {[%clk 0:03:02]}  c5 {[%clk 0:03:00]} 5. d3 {[%clk 0:03:03]}  g6 {[%clk 0:02:58]} 6. Nbd2 {[%clk 0:03:04]}  Bg7 {[%clk 0:02:57]} 7. c4 {[%clk 0:03:05]}  O-O {[%clk 0:02:57]} 8. a3 {[%clk 0:03:06]}  Nc6 {[%clk 0:02:57]} 9. Rb1 {[%clk 0:03:06]}  b6 {[%clk 0:02:52]} 10. b4 {[%clk 0:03:06]}  cxb4 {[%clk 0:02:52]} 11. axb4 {[%clk 0:03:07]}  Bb7 {[%clk 0:02:52]} 12. Ba3 {[%clk 0:03:03]}  Re8 {[%clk 0:02:47]} 13. b5 {[%clk 0:03:02]}  Na5 {[%clk 0:02:40]} 14. c5 {[%clk 0:03:01]}  bxc5 {[%clk 0:02:32]} 15. Bxc5 {[%clk 0:03:01]}  Nd7 {[%clk 0:02:33]} 16. Bb4 {[%clk 0:03:01]}  a6 {[%clk 0:02:30]} 17. b6 {[%clk 0:02:45]}  Nc6 {[%clk 0:02:29]} 18. Ba3 {[%clk 0:02:43]}  a5 {[%clk 0:02:23]} 19. Nb3 {[%clk 0:02:38]}  Nxb6 {[%clk 0:01:54]} 20. Nc5 {[%clk 0:02:28]}  Bc8 {[%clk 0:01:53]} 21. Qd2 {[%clk 0:02:19]}  Nd7 {[%clk 0:01:51]} 22. Nb7 {[%clk 0:02:13]}  Bxb7 {[%clk 0:01:26]} 23. Rxb7 {[%clk 0:02:13]}  Nb4 {[%clk 0:01:17]} 24. Bxb4 {[%clk 0:02:12]}  axb4 {[%clk 0:01:17]} 25. Qxb4 {[%clk 0:02:12]}  Ne5 {[%clk 0:01:16]} 26. Rc1 {[%clk 0:02:03]}  Rb8 {[%clk 0:01:15]} 27. Nxe5 {[%clk 0:01:46]}  Bxe5 {[%clk 0:01:13]} 28. e3 {[%clk 0:01:46]}  Rxb7 {[%clk 0:01:11]} 29. Qxb7 {[%clk 0:01:47]}  Qe7 {[%clk 0:01:09]} 30. Qc6 {[%clk 0:01:46]}  Rb8 {[%clk 0:01:04]} 31. d4 {[%clk 0:01:45]}  Bd6 {[%clk 0:01:04]} 32. h4 {[%clk 0:01:42]}  h5 {[%clk 0:01:04]} 33. Bf3 {[%clk 0:01:42]}  Kg7 {[%clk 0:01:04]} 34. Kg2 {[%clk 0:01:42]}  Rb2 {[%clk 0:01:03]} 35. Qa8 {[%clk 0:01:34]}  Rb8 {[%clk 0:00:57]} 36. Qa2 {[%clk 0:01:31]}  Qb7 {[%clk 0:00:56]} 37. Rc2 {[%clk 0:01:29]}  Qb3 {[%clk 0:00:55]} 38. Qxb3 {[%clk 0:01:27]}  Rxb3 {[%clk 0:00:55]} 39. Rc6 {[%clk 0:01:27]}  Be7 {[%clk 0:00:55]} 40. Rc7 {[%clk 0:01:27]}  Bb4 {[%clk 0:00:53]} 41. Rb7 {[%clk 0:01:26]}  Rb2 {[%clk 0:00:53]} 42. Bd1 {[%clk 0:01:17]}  Bc3 {[%clk 0:00:52]} 43. Rc7 {[%clk 0:01:12]}  Be1 {[%clk 0:00:52]} 44. Bc2 {[%clk 0:01:12]}  Ba5 {[%clk 0:00:51]} 45. Rc8 {[%clk 0:01:10]}  Be1 {[%clk 0:00:51]} 46. Kf1 {[%clk 0:01:10]}  Ba5 {[%clk 0:00:51]} 47. Ke2 {[%clk 0:01:10]}  Ra2 {[%clk 0:00:51]} 48. f3 {[%clk 0:01:10]}  Ra3 {[%clk 0:00:50]} 49. g4 {[%clk 0:01:08]}  hxg4 {[%clk 0:00:45]} 50. fxg4 {[%clk 0:01:09]}  Rc3 {[%clk 0:00:46]} 51. Rxc3 {[%clk 0:01:08]}  Bxc3 {[%clk 0:00:47]} 52. Kf3 {[%clk 0:01:08]}  Be1 {[%clk 0:00:47]} 53. h5 {[%clk 0:01:08]}  gxh5 {[%clk 0:00:47]} 54. gxh5 {[%clk 0:01:09]}  Kh6 {[%clk 0:00:46]} 55. Kg4 {[%clk 0:01:06]}  Bd2 {[%clk 0:00:47]} 56. e4 {[%clk 0:01:06]}  Be3 {[%clk 0:00:45]} 57. exd5 {[%clk 0:01:04]}  exd5 {[%clk 0:00:46]} 58. Bb3 {[%clk 0:01:02]}  Bxd4 {[%clk 0:00:46]} 59. Bxd5 {[%clk 0:01:03]}  f6 {[%clk 0:00:47]} 60. Bf7 {[%clk 0:01:02]}  Be5 {[%clk 0:00:48]} 61. Kf5 {[%clk 0:01:02]}  Ba1 {[%clk 0:00:49]} 62. Bg6 {[%clk 0:01:03]}  Be5 {[%clk 0:00:50]} 63. Bf7 {[%clk 0:01:04]}  Ba1 {[%clk 0:00:50]} 64. Bg6 {[%clk 0:01:04]}  Be5 {[%clk 0:00:51]} 65. Bf7 {[%clk 0:01:05]} 1/2-1/2


[Site "https://www.chess.com"]